fUST/lending_fUST_20250516
["ID","MTS","AMOUNT","RATE_DAILY","PERIOD"]
[361235904,1747384232471,-193.0,0.0001369,3]
[361235906,1747384232480,-188.4430534,0.0001369,3]
[361235907,1747384232489,-644.70170839,0.00013697,2]
[361235910,1747384232499,-500.0,0.00013697,2]
[361235912,1747384232508,-180.50888458,0.00013697,2]
[361235914,1747384232518,-500.0,0.00013697,2]
[361235916,1747384232528,-500.0,0.00013697,2]
[361235918,1747384232537,-500.0,0.00013697,2]
[361235919,1747384232546,-500.0,0.00013697,2]
[361235921,1747384232555,-216.6519162,0.00013697,2]
[361235923,1747384232565,-154.34,0.00013698,2]
[361235926,1747384232574,-450.0,0.00013698,2]
[361235927,1747384232584,-533.23,0.00013698,2]
[361235928,1747384232594,-450.0,0.00013698,2]
[361235929,1747384232602,-450.0,0.00013698,2]
[361235930,1747384232611,-450.0,0.00013698,2]
[361235931,1747384232621,-196.02032858,0.00013698,2]
[361235932,1747384232632,-450.0,0.00013698,2]
[361235933,1747384232640,-450.0,0.00013698,2]
[361235934,1747384232650,-400.90681113,0.00013698,2]
[361235935,1747384232659,-505.16,0.00013698,2]
[361235936,1747384232668,-177.81475002,0.00013698,2]
[361235937,1747384232678,-450.0,0.00013698,2]
[361235938,1747384232687,-548.80225315,0.00013698,2]
[361235939,1747384232696,-450.0,0.00013698,2]
[361235940,1747384232706,-450.0,0.00013698,2]
[361235941,1747384232715,-1057.8,0.00013698,2]
[361235942,1747384232725,-641.06,0.00013698,2]
[361235943,1747384232734,-1730.34,0.00013698,2]
[361235944,1747384232743,-487.44,0.00013698,2]
[361235945,1747384232752,-450.0,0.00013698,2]
[361235946,1747384232761,-450.0,0.00013698,2]
[361235947,1747384232771,-450.0,0.00013698,2]
[361235948,1747384232981,-450.0,0.00013698,2]
[361235949,1747384232991,-450.0,0.00013698,2]
[361235950,1747384232999,-450.0,0.00013698,2]
[361235951,1747384233009,-892.22,0.00013698,2]
[361235952,1747384233018,-450.0,0.00013698,2]
[361235953,1747384233027,-450.0,0.00013698,2]
[361235954,1747384233040,-475.69,0.00013698,2]
[361235955,1747384233050,-450.0,0.00013698,2]
[361235956,1747384233059,-451.5980558,0.00013698,2]
[361235957,1747384233068,-450.0,0.00013698,2]
[361235958,1747384233078,-450.0,0.00013698,2]
[361235959,1747384233088,-723.69,0.00013698,2]
[361235960,1747384233099,-312.70763767,0.00013698,2]
[361235961,1747384233108,-450.0,0.00013698,2]
[361235962,1747384233120,-450.0,0.00013698,2]
[361235963,1747384233131,-450.0,0.00013698,2]
[361235964,1747384233142,-450.0,0.00013698,2]
[361235965,1747384233151,-450.0,0.00013698,2]
[361235966,1747384233161,-498.03,0.00013698,2]
[361235967,1747384233171,-450.0,0.00013698,2]
[361235968,1747384233181,-450.0,0.00013698,2]
[361235969,1747384233191,-450.0,0.00013698,2]
[361235970,1747384233201,-450.0,0.00013698,2]
[361235971,1747384233211,-743.73,0.00013698,2]
[361235972,1747384233224,-450.0,0.00013698,2]
[361235973,1747384233235,-450.0,0.00013698,2]
[361235974,1747384233244,-450.0,0.00013698,2]
[361235975,1747384233254,-450.0,0.00013698,2]
[361235976,1747384233263,-450.0,0.00013698,2]
[361235977,1747384233273,-450.0,0.00013698,2]
[361235978,1747384233282,-450.0,0.00013698,2]
[361235979,1747384233291,-450.0,0.00013698,2]
[361235980,1747384233301,-450.0,0.00013698,2]
[361235981,1747384233310,-1205.56,0.00013698,2]
[361235982,1747384233320,-727.53,0.00013698,2]
[361235983,1747384233331,-551.65,0.00013698,2]
[361235984,1747384233340,-3230.16,0.00013698,2]
[361235985,1747384233350,-560.62,0.00013698,2]
[361235986,1747384233361,-233.8744509,0.00013698,2]
[361235987,1747384233371,-1364.95,0.00013698,2]
[361235988,1747384233382,-1441.57,0.00013698,2]
[361235989,1747384233392,-1270.59,0.00013698,2]
[361235990,1747384233401,-1824.21,0.00013698,2]
[361235991,1747384233411,-450.0,0.00013698,2]
[361235992,1747384233422,-450.0,0.00013698,2]
[361235993,1747384233432,-2491.26,0.00013698,2]
[361235994,1747384233442,-450.0,0.00013698,2]
[361235995,1747384233452,-450.0,0.00013698,2]
[361235996,1747384233463,-450.0,0.00013698,2]
[361235997,1747384233473,-624.13,0.00013698,2]
[361235998,1747384233483,-1396.19,0.00013698,2]
[361235999,1747384233493,-450.0,0.00013698,2]
[361236000,1747384233503,-532.17,0.00013698,2]
[361236001,1747384233512,-835.25,0.00013698,2]
[361236002,1747384233521,-3137.71,0.00013698,2]
[361236003,1747384233533,-450.0,0.00013698,2]
[361236004,1747384233542,-589.01,0.00013698,2]
[361236005,1747384233552,-450.0,0.00013698,2]
[361236006,1747384233561,-450.0,0.00013698,2]
[361236007,1747384233571,-1368.84,0.00013698,2]
[361236008,1747384233580,-545.64,0.00013698,2]
[361236009,1747384233589,-1470.3,0.00013698,2]
[361236010,1747384233598,-450.0,0.00013698,2]
[361236011,1747384233607,-1255.72,0.00013698,2]
[361236012,1747384233617,-1106.99,0.00013698,2]
[361236013,1747384233627,-5849.94,0.00013698,2]
[361236014,1747384233636,-450.0,0.00013698,2]
[361236015,1747384233647,-2331.5,0.00013698,2]
[361236016,1747384233656,-714.97,0.00013698,2]
[361236017,1747384233666,-1234.5,0.00013698,2]
[361236018,1747384233676,-4728.03,0.00013698,2]
[361236019,1747384233686,-1684.14,0.00013698,2]
[361236020,1747384233695,-450.0,0.00013698,2]
[361236021,1747384233705,-571.72,0.00013698,2]
[361236022,1747384233714,-450.0,0.00013698,2]
[361236023,1747384233723,-450.0,0.00013698,2]
[361236024,1747384233733,-9365.98,0.00013698,2]
[361236025,1747384233742,-1711.98,0.00013698,2]
[361236026,1747384233752,-450.0,0.00013698,2]
[361236027,1747384233762,-450.0,0.00013698,2]
[361236028,1747384233772,-3990.54,0.00013698,2]
[361236029,1747384233781,-450.0,0.00013698,2]
[361236030,1747384233790,-450.0,0.00013698,2]
[361236031,1747384233799,-451.16714129,0.00013698,2]
[361236032,1747384233808,-991.23,0.00013698,2]
[361236033,1747384233817,-652.01,0.00013698,2]
[361236034,1747384233827,-5552.55,0.00013698,2]
[361236035,1747384233836,-895.26,0.00013698,2]
[361236036,1747384233846,-7378.03,0.00013698,2]
[361236037,1747384233855,-3362.61,0.00013698,2]
[361236038,1747384233864,-450.0,0.00013698,2]
[361236039,1747384233875,-450.0,0.00013698,2]
[361236040,1747384233884,-1148.52,0.00013698,2]
[361236041,1747384233894,-625.38,0.00013698,2]
[361236042,1747384233903,-450.0,0.00013698,2]
[361236043,1747384233912,-450.0,0.00013698,2]
[361236044,1747384233921,-1871.29,0.00013698,2]
[361236045,1747384233931,-255.5629277,0.00013698,2]
[361236046,1747384233940,-2775.19,0.00013698,2]
[361236047,1747384233949,-998.1,0.00013698,2]
[361236048,1747384233958,-450.0,0.00013698,2]
[361236049,1747384233968,-450.0,0.00013698,2]
[361236050,1747384233977,-450.0,0.00013698,2]
[361236051,1747384233987,-718.8,0.00013698,2]
[361236052,1747384233996,-450.0,0.00013698,2]
[361236053,1747384234005,-717.24,0.00013698,2]
[361236054,1747384234014,-873.38,0.00013698,2]
[361236055,1747384234024,-450.0,0.00013698,2]
[361236056,1747384234036,-1025.91,0.00013698,2]
[361236057,1747384234046,-1233.51,0.00013698,2]
[361236058,1747384234055,-3879.37,0.00013698,2]
[361236059,1747384234065,-450.0,0.00013698,2]
[361236060,1747384234076,-450.0,0.00013698,2]
[361236061,1747384234087,-1094.45,0.00013698,2]
[361236062,1747384234096,-713.07,0.00013698,2]
[361236063,1747384234105,-909.14,0.00013698,2]
[361236064,1747384234116,-890.03,0.00013698,2]
[361236065,1747384234127,-450.0,0.00013698,2]
[361236066,1747384234136,-2494.18,0.00013698,2]
[361236067,1747384234146,-591.54,0.00013698,2]
[361236068,1747384234155,-450.0,0.00013698,2]
[361236069,1747384234165,-450.0,0.00013698,2]
[361236070,1747384234174,-450.0,0.00013698,2]
[361236071,1747384234183,-472.54,0.00013698,2]
[361236072,1747384234192,-1780.98,0.00013698,2]
[361236073,1747384234202,-450.0,0.00013698,2]
[361236074,1747384234212,-450.0,0.00013698,2]
[361236075,1747384234222,-450.0,0.00013698,2]
[361236076,1747384234231,-629.01,0.00013698,2]
[361236077,1747384234240,-450.0,0.00013698,2]
[361236078,1747384234250,-450.0,0.00013698,2]
[361236079,1747384234259,-1025.15,0.00013698,2]
[361236080,1747384234268,-1493.29,0.00013698,2]
[361236081,1747384234278,-595.15,0.00013698,2]
[361236082,1747384234287,-450.0,0.00013698,2]
[361236083,1747384234309,-2029.07,0.00013698,2]
[361236084,1747384234319,-811.46,0.00013698,2]
[361236085,1747384234328,-524.887615,0.00013699,2]
[361236086,1747384234338,-604.44446098,0.00013699,2]
[361236087,1747384234347,-151.0,0.00013699,2]
[361236088,1747384234357,-13860.0,0.000137,2]
[361236089,1747384234367,-151.0,0.000137,2]
[361236090,1747384234378,-151.0,0.000137,2]
[361236091,1747384234387,-10937.61847543,0.00013721,2]
[361236092,1747384234396,-154.35111,0.00013721,2]
[361236093,1747384234406,-300.0,0.00013733,2]
[361236094,1747384234415,-420.0,0.00013733,2]
[361236095,1747384234425,-420.0,0.00013733,2]
[361236096,1747384234434,-301.0,0.00013733,2]
[361236097,1747384234443,-845.1982065,0.00013735,2]
[361236098,1747384234453,-2237.0,0.00013738,2]
[361236099,1747384234462,-707.0,0.00013738,2]
[361236100,1747384234472,-404.0,0.00013738,2]
[361236101,1747384234482,-546.0,0.00013738,2]
[361236102,1747384234491,-1490.3399019,0.00013765,2]
[361236103,1747384234500,-155.68,0.00013767,2]
[361236104,1747384234510,-225.301,0.00013767,2]
[361236105,1747384234519,-150.0,0.00013779,2]
[361236106,1747384234528,-150.0,0.00013779,2]
[361236107,1747384234537,-150.0,0.00013779,2]
[361236108,1747384234546,-150.0,0.00013779,2]
[361236109,1747384234555,-150.0,0.00013779,2]
[361236110,1747384234564,-150.0,0.00013779,2]
[361236111,1747384234574,-401.26541434,0.00013782,2]
[361236112,1747384234583,-151.0,0.000138,2]
[361236113,1747384234593,-151.0,0.000138,2]
[361236114,1747384234603,-151.0,0.000138,2]
[361236115,1747384234612,-151.0,0.000138,2]
[361236116,1747384234622,-151.0,0.000138,2]
[361236117,1747384234634,-151.0,0.000138,2]
[361236118,1747384234643,-151.0,0.000138,2]
[361236119,1747384234653,-156.0,0.000138,2]
[361236120,1747384234662,-159.614,0.000138,2]
[361236121,1747384234672,-151.0,0.000138,2]
[361236122,1747384234682,-151.0,0.000138,2]
[361236123,1747384234691,-151.0,0.000138,2]
[361236124,1747384234700,-845.1982065,0.00013804,2]
[361236125,1747384234710,-160.0,0.00013834,2]
[361236126,1747384234719,-160.0,0.00013834,2]
[361236127,1747384234728,-297.44693426,0.00013834,2]
[361236128,1747384234738,-151.0,0.00013835,2]
[361236129,1747384234746,-151.0,0.00013835,2]
[361236130,1747384234756,-450.0,0.00013835,2]
[361236131,1747384234765,-533.23,0.00013835,2]
[361236132,1747384234775,-450.0,0.00013835,2]
[361236133,1747384234783,-450.0,0.00013835,2]
[361236134,1747384234793,-450.0,0.00013835,2]
[361236135,1747384234802,-450.0,0.00013835,2]
[361236136,1747384234811,-161.42376086,0.00013835,2]
[361236137,1747384234820,-505.16,0.00013835,2]
[361236138,1747384234829,-450.0,0.00013835,2]
[361236139,1747384234843,-450.0,0.00013835,2]
[361236140,1747384234855,-450.0,0.00013835,2]
[361236141,1747384234866,-1057.8,0.00013835,2]
[361236142,1747384234877,-641.06,0.00013835,2]
[361236143,1747384234887,-1730.34,0.00013835,2]
[361236144,1747384234896,-487.44,0.00013835,2]
[361236145,1747384234906,-450.0,0.00013835,2]
[361236146,1747384234917,-450.0,0.00013835,2]
[361236147,1747384234926,-450.0,0.00013835,2]
[361236148,1747384234936,-450.0,0.00013835,2]
[361236149,1747384234945,-450.0,0.00013835,2]
[361236150,1747384234956,-450.0,0.00013835,2]
[361236151,1747384234966,-892.22,0.00013835,2]
[361236152,1747384234975,-450.0,0.00013835,2]
[361236153,1747384234985,-475.69,0.00013835,2]
[361236154,1747384234995,-450.0,0.00013835,2]
[361236155,1747384235005,-450.0,0.00013835,2]
[361236156,1747384235014,-516.58583869,0.00013835,2]
[361236157,1747384235023,-723.69,0.00013835,2]
[361236158,1747384235034,-151.0,0.00013835,2]
[361236159,1747384235047,-151.0,0.00013835,2]
[361236160,1747384235056,-151.0,0.00013835,2]
[361236161,1747384235067,-151.0,0.00013835,2]
[361236162,1747384235076,-450.0,0.00013835,2]
[361236163,1747384235086,-151.0,0.00013835,2]
[361236164,1747384235095,-151.0,0.00013835,2]
[361236165,1747384235104,-450.0,0.00013835,2]
[361236166,1747384235114,-450.0,0.00013835,2]
[361236167,1747384235125,-450.0,0.00013835,2]
[361236168,1747384235135,-450.0,0.00013835,2]
[361236169,1747384235144,-498.03,0.00013835,2]
[361236170,1747384235154,-450.0,0.00013835,2]
[361236171,1747384235163,-450.0,0.00013835,2]
[361236172,1747384235173,-450.0,0.00013835,2]
[361236173,1747384235182,-450.0,0.00013835,2]
[361236174,1747384235192,-743.73,0.00013835,2]
[361236175,1747384235202,-450.0,0.00013835,2]
[361236176,1747384235211,-450.0,0.00013835,2]
[361236177,1747384235221,-450.0,0.00013835,2]
[361236178,1747384235230,-450.0,0.00013835,2]
[361236179,1747384235239,-450.0,0.00013835,2]
[361236180,1747384235249,-450.0,0.00013835,2]
[361236181,1747384235258,-450.0,0.00013835,2]
[361236182,1747384235268,-450.0,0.00013835,2]
[361236183,1747384235278,-1205.56,0.00013835,2]
[361236184,1747384235288,-727.53,0.00013835,2]
[361236185,1747384235297,-551.65,0.00013835,2]
[361236186,1747384235306,-3230.16,0.00013835,2]
[361236187,1747384235315,-560.62,0.00013835,2]
[361236188,1747384235325,-1364.95,0.00013835,2]
[361236189,1747384235334,-1441.57,0.00013835,2]
[361236190,1747384235343,-1270.59,0.00013835,2]
[361236191,1747384235352,-1824.21,0.00013835,2]
[361236192,1747384235361,-450.0,0.00013835,2]
[361236193,1747384235371,-450.0,0.00013835,2]
[361236194,1747384235381,-2491.26,0.00013835,2]
[361236195,1747384235390,-450.0,0.00013835,2]
[361236196,1747384235399,-450.0,0.00013835,2]
[361236197,1747384235408,-450.0,0.00013835,2]
[361236198,1747384235417,-624.13,0.00013835,2]
[361236199,1747384235426,-1396.19,0.00013835,2]
[361236200,1747384235435,-450.0,0.00013835,2]
[361236201,1747384235445,-532.17,0.00013835,2]
[361236202,1747384235454,-835.25,0.00013835,2]
[361236203,1747384235463,-3137.71,0.00013835,2]
[361236204,1747384235473,-450.0,0.00013835,2]
[361236205,1747384235482,-589.01,0.00013835,2]
[361236206,1747384235491,-450.0,0.00013835,2]
[361236207,1747384235500,-450.0,0.00013835,2]
[361236208,1747384235508,-1368.84,0.00013835,2]
[361236209,1747384235518,-545.64,0.00013835,2]
[361236210,1747384235527,-1470.3,0.00013835,2]
[361236211,1747384235536,-450.0,0.00013835,2]
[361236212,1747384235545,-1255.72,0.00013835,2]
[361236213,1747384235554,-1106.99,0.00013835,2]
[361236214,1747384235563,-5849.94,0.00013835,2]
[361236215,1747384235572,-2331.5,0.00013835,2]
[361236216,1747384235581,-450.0,0.00013835,2]
[361236217,1747384235590,-714.97,0.00013835,2]
[361236218,1747384235599,-1234.5,0.00013835,2]
[361236219,1747384235607,-4728.03,0.00013835,2]
[361236220,1747384235616,-1684.14,0.00013835,2]
[361236221,1747384235626,-450.0,0.00013835,2]
[361236222,1747384235636,-571.72,0.00013835,2]
[361236223,1747384235646,-450.0,0.00013835,2]
[361236224,1747384235655,-165.48013139,0.00013835,2]
[361236225,1747384235665,-9365.98,0.00013835,2]
[361236226,1747384235674,-1711.98,0.00013835,2]
[361236227,1747384235683,-450.0,0.00013835,2]
[361236228,1747384235692,-450.0,0.00013835,2]
[361236229,1747384235701,-3990.54,0.00013835,2]
[361236230,1747384235710,-450.0,0.00013835,2]
[361236231,1747384235719,-450.0,0.00013835,2]
[361236232,1747384235728,-991.23,0.00013835,2]
[361236233,1747384235737,-652.01,0.00013835,2]
[361236234,1747384235746,-5552.55,0.00013835,2]
[361236235,1747384235755,-895.26,0.00013835,2]
[361236236,1747384235764,-7378.03,0.00013835,2]
[361236237,1747384235773,-3362.61,0.00013835,2]
[361236238,1747384235782,-450.0,0.00013835,2]
[361236239,1747384235792,-450.0,0.00013835,2]
[361236240,1747384235801,-1148.52,0.00013835,2]
[361236241,1747384235810,-625.38,0.00013835,2]
[361236242,1747384235819,-450.0,0.00013835,2]
[361236243,1747384235828,-450.0,0.00013835,2]
[361236244,1747384235837,-1871.29,0.00013835,2]
[361236245,1747384235847,-2775.19,0.00013835,2]
[361236246,1747384235855,-998.1,0.00013835,2]
[361236247,1747384235865,-450.0,0.00013835,2]
[361236248,1747384235875,-450.0,0.00013835,2]
[361236249,1747384235885,-450.0,0.00013835,2]
[361236250,1747384235894,-718.8,0.00013835,2]
[361236251,1747384235903,-450.0,0.00013835,2]
[361236252,1747384235912,-717.24,0.00013835,2]
[361236253,1747384235921,-873.38,0.00013835,2]
[361236254,1747384235930,-450.0,0.00013835,2]
[361236255,1747384235939,-1025.91,0.00013835,2]
[361236256,1747384235948,-151.0,0.00013835,2]
[361236257,1747384235957,-1233.51,0.00013835,2]
[361236258,1747384235966,-151.0,0.00013835,2]
[361236259,1747384235975,-151.0,0.00013835,2]
[361236260,1747384235984,-3879.37,0.00013835,2]
[361236261,1747384235993,-450.0,0.00013835,2]
[361236262,1747384236002,-450.0,0.00013835,2]
[361236263,1747384236011,-1094.45,0.00013835,2]
[361236264,1747384236021,-713.07,0.00013835,2]
[361236265,1747384236030,-909.14,0.00013835,2]
[361236266,1747384236043,-890.03,0.00013835,2]
[361236267,1747384236052,-450.0,0.00013835,2]
[361236268,1747384236061,-2494.18,0.00013835,2]
[361236269,1747384236070,-591.54,0.00013835,2]
[361236270,1747384236079,-450.0,0.00013835,2]
[361236271,1747384236088,-450.0,0.00013835,2]
[361236272,1747384236097,-450.0,0.00013835,2]
[361236273,1747384236107,-472.54,0.00013835,2]
[361236274,1747384236117,-1780.98,0.00013835,2]
[361236275,1747384236130,-450.0,0.00013835,2]
[361236276,1747384236139,-259.89682794,0.00013835,2]
[361236277,1747384236148,-450.0,0.00013835,2]
[361236278,1747384236158,-629.01,0.00013835,2]
[361236279,1747384236167,-260.84248637,0.00013835,2]
[361236280,1747384236176,-450.0,0.00013835,2]
[361236281,1747384236186,-1025.15,0.00013835,2]
[361236282,1747384236196,-1493.29,0.00013835,2]
[361236283,1747384236206,-595.15,0.00013835,2]
[361236284,1747384236215,-450.0,0.00013835,2]
[361236285,1747384236224,-2029.07,0.00013835,2]
[361236286,1747384236235,-811.46,0.00013835,2]
[361236287,1747384236244,-845.1982065,0.00013872,2]
[361236288,1747384236253,-500.0,0.0001389,2]
[361236289,1747384236262,-151.0,0.000139,2]
[361236290,1747384236271,-151.0,0.000139,2]
[361236291,1747384236280,-151.0,0.000139,2]
[361236292,1747384236290,-151.0,0.000139,2]
[361236293,1747384236300,-151.0,0.000139,2]
[361236294,1747384236309,-151.0,0.000139,2]
[361236295,1747384236319,-151.0,0.000139,2]
[361236296,1747384236328,-551.68563457,0.0001391,2]
[361236297,1747384236338,-401.26541434,0.00013969,2]
[361236298,1747384236348,-160.0,0.00013971,2]
[361236299,1747384236358,-160.0,0.00013971,2]
[361236300,1747384236368,-151.0,0.00013972,2]
[361236301,1747384236379,-151.0,0.00013972,2]
[361236302,1747384236389,-484.98351263,0.00013972,2]
[361236303,1747384236398,-533.23,0.00013972,2]
[361236304,1747384236408,-450.0,0.00013972,2]
[361236305,1747384236418,-450.0,0.00013972,2]
[361236306,1747384236428,-450.0,0.00013972,2]
[361236307,1747384236437,-450.0,0.00013972,2]
[361236308,1747384236446,-505.16,0.00013972,2]
[361236309,1747384236456,-450.0,0.00013972,2]
[361236310,1747384236465,-450.0,0.00013972,2]
[361236311,1747384236475,-450.0,0.00013972,2]
[361236312,1747384236484,-1057.8,0.00013972,2]
[361236313,1747384236494,-641.06,0.00013972,2]
[361236314,1747384236506,-1730.34,0.00013972,2]
[361236315,1747384236516,-487.44,0.00013972,2]
[361236316,1747384236526,-450.0,0.00013972,2]
[361236317,1747384236535,-450.0,0.00013972,2]
[361236318,1747384236545,-450.0,0.00013972,2]
[361236319,1747384236554,-450.0,0.00013972,2]
[361236320,1747384236563,-450.0,0.00013972,2]
[361236321,1747384236573,-450.0,0.00013972,2]
[361236322,1747384236582,-892.22,0.00013972,2]
[361236323,1747384236591,-450.0,0.00013972,2]
[361236324,1747384236601,-475.69,0.00013972,2]
[361236325,1747384236611,-450.0,0.00013972,2]
[361236326,1747384236621,-450.0,0.00013972,2]
[361236327,1747384236631,-723.69,0.00013972,2]
[361236328,1747384236640,-151.0,0.00013972,2]
[361236329,1747384236650,-151.0,0.00013972,2]
[361236330,1747384236660,-151.0,0.00013972,2]
[361236331,1747384236669,-450.0,0.00013972,2]
[361236332,1747384236678,-151.0,0.00013972,2]
[361236333,1747384236688,-151.0,0.00013972,2]
[361236334,1747384236697,-151.0,0.00013972,2]
[361236335,1747384236707,-450.0,0.00013972,2]
[361236336,1747384236716,-450.0,0.00013972,2]
[361236337,1747384236725,-450.0,0.00013972,2]
[361236338,1747384236735,-450.0,0.00013972,2]
[361236339,1747384236744,-498.03,0.00013972,2]
[361236340,1747384236754,-450.0,0.00013972,2]
[361236341,1747384236921,-450.0,0.00013972,2]
[361236342,1747384236931,-450.0,0.00013972,2]
[361236343,1747384236941,-229.4028542,0.00013972,2]
[361236344,1747384236951,-743.73,0.00013972,2]
[361236345,1747384236960,-450.0,0.00013972,2]
[361236346,1747384236969,-450.0,0.00013972,2]
[361236347,1747384236979,-450.0,0.00013972,2]
[361236348,1747384236988,-450.0,0.00013972,2]
[361236349,1747384236998,-450.0,0.00013972,2]
[361236350,1747384237007,-450.0,0.00013972,2]
[361236351,1747384237016,-450.0,0.00013972,2]
[361236352,1747384237026,-450.0,0.00013972,2]
[361236353,1747384237037,-1205.56,0.00013972,2]
[361236354,1747384237047,-727.53,0.00013972,2]
[361236355,1747384237056,-551.65,0.00013972,2]
[361236356,1747384237066,-3230.16,0.00013972,2]
[361236357,1747384237075,-560.62,0.00013972,2]
[361236358,1747384237086,-1364.95,0.00013972,2]
[361236359,1747384237096,-1441.57,0.00013972,2]
[361236360,1747384237105,-1270.59,0.00013972,2]
[361236361,1747384237116,-1824.21,0.00013972,2]
[361236362,1747384237125,-450.0,0.00013972,2]
[361236363,1747384237134,-450.0,0.00013972,2]
[361236364,1747384237144,-2491.26,0.00013972,2]
[361236365,1747384237153,-450.0,0.00013972,2]
[361236366,1747384237163,-450.0,0.00013972,2]
[361236367,1747384237173,-450.0,0.00013972,2]
[361236368,1747384237182,-624.13,0.00013972,2]
[361236369,1747384237191,-1396.19,0.00013972,2]
[361236370,1747384237201,-450.0,0.00013972,2]
[361236371,1747384237210,-532.17,0.00013972,2]
[361236372,1747384237220,-835.25,0.00013972,2]
[361236373,1747384237229,-3137.71,0.00013972,2]
[361236374,1747384237238,-450.0,0.00013972,2]
[361236375,1747384237248,-589.01,0.00013972,2]
[361236376,1747384237258,-434.56854342,0.00013972,2]
[361236377,1747384237267,-450.0,0.00013972,2]
[361236378,1747384237277,-1368.84,0.00013972,2]
[361236379,1747384237287,-545.64,0.00013972,2]
[361236380,1747384237296,-450.0,0.00013972,2]
[361236381,1747384237306,-1470.3,0.00013972,2]
[361236382,1747384237316,-1255.72,0.00013972,2]
[361236383,1747384237326,-1106.99,0.00013972,2]
[361236384,1747384237335,-5849.94,0.00013972,2]
[361236385,1747384237344,-2331.5,0.00013972,2]
[361236386,1747384237354,-450.0,0.00013972,2]
[361236387,1747384237363,-714.97,0.00013972,2]
[361236388,1747384237373,-1234.5,0.00013972,2]
[361236389,1747384237383,-4728.03,0.00013972,2]
[361236391,1747384237393,-1684.14,0.00013972,2]
[361236392,1747384237403,-450.0,0.00013972,2]
[361236393,1747384237412,-571.72,0.00013972,2]
[361236394,1747384237422,-450.0,0.00013972,2]
[361236395,1747384237431,-9365.98,0.00013972,2]
[361236396,1747384237441,-1711.98,0.00013972,2]
[361236397,1747384237451,-450.0,0.00013972,2]
[361236398,1747384237460,-450.0,0.00013972,2]
[361236399,1747384237470,-3990.54,0.00013972,2]
[361236400,1747384237479,-450.0,0.00013972,2]
[361236401,1747384237489,-450.0,0.00013972,2]
[361236402,1747384237498,-991.23,0.00013972,2]
[361236403,1747384237508,-652.01,0.00013972,2]
[361236404,1747384237518,-5552.55,0.00013972,2]
[361236405,1747384237527,-895.26,0.00013972,2]
[361236406,1747384237537,-7378.03,0.00013972,2]
[361236407,1747384237546,-3362.61,0.00013972,2]
[361236408,1747384237556,-450.0,0.00013972,2]
[361236409,1747384237566,-450.0,0.00013972,2]
[361236410,1747384237575,-1148.52,0.00013972,2]
[361236411,1747384237585,-625.38,0.00013972,2]
[361236412,1747384237595,-450.0,0.00013972,2]
[361236413,1747384237604,-450.0,0.00013972,2]
[361236414,1747384237614,-1871.29,0.00013972,2]
[361236415,1747384237623,-2775.19,0.00013972,2]